[Event "European Women Blitz-ch 2024"]
[Site "Monaco"]
[Date "2025.01.10"]
[Round "3.3"]
[White "Berend, Elvira"]
[Black "Wagner, Dinara"]
[Result "1/2-1/2"]
[Annotator "TA"]
[ECO "B52"]
[WhiteElo "2237"]
[BlackElo "2437"]
[PlyCount "117"]
[EventDate "2025.01.06"]
[EventType "swiss"]
[EventCountry "MNC"]
[SourceTitle "playchess.com"]
[Source "ChessBase"]
[SourceQuality "1"]
[TimeControl "180+2"]

{[%evp 9,117,0,5,10,6,0,0,0,9,1,27,-14,-12,-24,-18,-31,-19,-23,-32,-52,-25,-27,-27,-42,-28,-21,-33,-38,-33,-28,-42,-32,-45,-49,-52,-56,1,-40,8,2,3,0,10,8,16,28,41,0,0,0,16,19,16,20,27,-14,39,41,41,6,1057,1052,925,66,69,72,120,118,141,141,148,137,177,167,143,50,50,50,63,50,52,52,76,50,89,82,89,89,97,97,174,8,8,8,89,0,0,0,10,10,10,10,10,10,38,0,8,0,0,0]} 1. e4 {[%emt 0:00:01]} c5 {[%emt 0:00:00]} 2. Nf3 {[%emt 0:00:02]} d6 {[%emt 0:00:01]} 3. Bb5+ {[%emt 0:00:06]} Bd7 {[%emt 0:00:01]} 4. a4 {[%emt 0:00:05]} Nf6 {[%emt 0:00:04]} 5. Nc3 {[%emt 0:00:02]} g6 {[%emt 0:00:02]} 6. O-O {[%emt 0:00:02]} Bg7 {[%emt 0:00:01]} 7. Bxd7+ {[%emt 0:00:02]} Qxd7 {[%emt 0:00:23]} 8. e5 {[%emt 0:00:01]} dxe5 {[%emt 0:00:23]} 9. Nxe5 {[%emt 0:00:01]} Qf5 {[%emt 0:00:05]} 10. Nc4 {[%emt 0:00:07]} O-O {[%emt 0:00:04]} 11. Ne3 {[%emt 0:00:10]} Qd7 {[%emt 0:00:02]} 12. d3 {[%emt 0:00:05]} Nc6 {[%emt 0:00:02]} 13. Re1 {[%emt 0:00:01]} b6 {[%emt 0:00:06]} 14. h3 {[%emt 0:00:12]} Rfd8 {[%emt 0:00:02]} 15. Nc4 {[%emt 0:00:18]} Nd5 {[%emt 0:00:10]} 16. Bd2 {[%emt 0:00:14]} Rac8 {[%emt 0:00:06]} 17. Nxd5 {[%emt 0:00:07]} Qxd5 {[%emt 0:00:02]} 18. Bc3 {[%emt 0:00:02]} e5 {[%emt 0:00:27]} 19. Qe2 {[%emt 0:00:09]} Re8 {[%emt 0:00:03]} 20. Qe4 {[%emt 0:00:05]} Qd7 {[%emt 0:00:02]} 21. Qh4 {[%emt 0:00:13]} Nd4 {[%emt 0:00:25]} 22. Bxd4 {[%emt 0:00:11]} exd4 {[%emt 0:00:21]} (22... cxd4 $15 23. Qg3 Qc6) 23. Qg3 {[%emt 0:00:08]} Re6 {[%emt 0:00:11]} (23... Rxe1+ $15 24. Rxe1 Qxa4) 24. Rxe6 $11 {[%emt 0:00:15]} Qxe6 {[%emt 0:00:00]} 25. Qg4 {[%emt 0:00:06]} f5 {[%emt 0:00:11]} 26. Qf3 {[%emt 0:00:01]} Re8 {[%emt 0:00:07]} 27. Qb7 {[%emt 0:00:09]} Qe7 {[%emt 0:00:21]} 28. Qd5+ {[%emt 0:00:07]} Qe6 {[%emt 0:00:02]} 29. Qb7 {[%emt 0:00:02]} Re7 {[%emt 0:00:03]} 30. Qb8+ {[%emt 0:00:09]} Bf8 {[%emt 0:00:00]} 31. a5 {[%emt 0:00:04]} bxa5 {[%emt 0:00:06]} 32. Nxa5 {[%emt 0:00:10][%cal Bc4a5,Ba5c6,Bc6e5][%mdl 32]} Qe2 {[%emt 0:00:08]} (32... Qb6 $11 33. Qxb6 axb6) 33. Qb3+ $14 {[%emt 0:00:03]} Kh8 {[%emt 0:00:04]} 34. Nc6 {[%emt 0:00:11][%csl LRa7,LRe7]} Rc7 $2 {[%emt 0:00:00][%mdl 8192]} (34... Re8 $11) 35. Qb8 $18 {[%emt 0:00:06][%cal Rb8f8]} (35. Nxa7 $2 Rxa7 36. Rf1 (36. Rxa7 Qe1+ 37. Kh2 Bd6+ 38. g3 Qxf2+ 39. Kh1 Qf3+ 40. Kg1 Qxg3+ 41. Kf1 Qxh3+ 42. Kg1 Bh2+ 43. Kf2 Bg3+ 44. Kf3 Be1+ 45. Ke2 Qe3+ 46. Kf1 Qf2#) 36... Kg7 $19) 35... Rf7 {[%emt 0:00:01]} 36. Qe5+ $2 {[%emt 0:00:08]} (36. Nxa7 Qe6 (36... Qxc2 $2 37. Nc6 $18) 37. Nb5 Kg8 $18) ({White must play} 36. Ne5 $18 Kg8 37. Nxf7 (37. Rxa7 $2 Rxa7 38. Qxa7 Qe1+ 39. Kh2 Qxe5+ $19) 37... Kxf7 38. Rxa7+ (38. Qxa7+ Be7 $18) 38... Be7 39. Qh8) 36... Qxe5 $14 {[%emt 0:00:05]} 37. Nxe5 {[%emt 0:00:01][%mdl 4096] Endgame KRB-KRN} Rc7 {[%emt 0:00:00]} ({Black should play} 37... Re7 38. Nc4 Re2) 38. Kf1 {[%emt 0:00:03]} Kg7 {[%emt 0:00:01]} 39. Ra6 {[%emt 0:00:00]} Be7 {[%emt 0:00:01]} 40. b3 {[%emt 0:00:02] White is more active.} Bf6 {[%emt 0:00:01]} 41. Nc6 {[%emt 0:00:03]} Kf7 {[%emt 0:00:02]} 42. Rxa7 {[%emt 0:00:01]} (42. Ke2 $16) 42... Rxa7 {[%emt 0:00:01]} 43. Nxa7 $16 {[%emt 0:00:01] KB-KN. White is a pawn up.} Ke6 {[%emt 0:00:00]} 44. Ke2 {[%emt 0:00:01]} Kd5 {[%emt 0:00:01]} 45. Nb5 {[%emt 0:00:03]} Bd8 {[%emt 0:00:02]} 46. Na3 {[%emt 0:00:01]} Ba5 {[%emt 0:00:01]} 47. Nc4 {[%emt 0:00:01]} Bd8 {[%emt 0:00:01]} 48. f4 {[%emt 0:00:03]} Bc7 {[%emt 0:00:01]} 49. Kf3 {[%emt 0:00:01]} h5 {[%emt 0:00:01] [#]} (49... Ke6 $16 {was necessary.}) 50. g4 $2 {[%emt 0:00:01]} (50. h4 $1 $18) 50... hxg4+ $11 {[%emt 0:00:01]} 51. hxg4 {[%emt 0:00:01]} Bb8 {[%emt 0:00:02]} (51... Kc6 $11 {remains equal.}) 52. gxf5 {[%emt 0:00:08]} ({White should try} 52. g5 $16) 52... gxf5 {[%emt 0:00:01]} 53. Nd2 {[%emt 0:00:03]} Kc6 {[%emt 0:00:00]} 54. Nf1 {[%emt 0:00:02] Hoping for Ng3.} Kd5 {[%emt 0:00:02]} 55. Ng3 {[%emt 0:00:01]} Ke6 {[%emt 0:00:00]} 56. Ne2 {[%emt 0:00:05]} Kd5 {[%emt 0:00:01]} 57. Ng3 {[%emt 0:00:06]} Ke6 {[%emt 0:00:00]} 58. Nh5 {[%emt 0:00:02]} Kf7 {[%emt 0:00:02]} 59. Ng3 {[%emt 0:00:02]} 1/2-1/2

[Event "European Women Blitz-ch 2024"]
[Site "Monaco"]
[Date "2025.01.10"]
[Round "3.4"]
[White "Khademalsharieh, Sarasadat"]
[Black "Hejazipour, Mitra"]
[Result "1-0"]
[Annotator "TA"]
[ECO "D35"]
[WhiteElo "2458"]
[BlackElo "2310"]
[PlyCount "72"]
[EventDate "2025.01.06"]
[EventType "swiss"]
[EventCountry "MNC"]
[SourceTitle "playchess.com"]
[Source "ChessBase"]
[SourceQuality "1"]
[TimeControl "180+2"]

{[%evp 9,72,12,31,13,35,39,81,42,60,-4,0,0,16,-31,24,29,49,38,74,64,76,42,44,39,81,87,121,130,134,87,147,143,189,179,213,145,135,130,143,126,136,93,147,106,158,132,293,292,301,292,299,301,285,289,420,406,414,368,492,497,480,468,508,516,29996]} 1. d4 {[%emt 0:00:03]} Nf6 {[%emt 0:00:03]} 2. c4 {[%emt 0:00:02]} e6 {[%emt 0:00:04]} 3. Nc3 {[%emt 0:00:02]} d5 {[%emt 0:00:14]} 4. cxd5 {[%emt 0:00:06]} exd5 {[%emt 0:00:01]} 5. Bg5 {[%emt 0:00:03]} Bb4 {[%emt 0:00:16]} 6. Qb3 {[%emt 0:00:14]} Nc6 {[%emt 0:00:25]} 7. e3 {[%emt 0:00:14]} Bxc3+ {[%emt 0:00:23]} 8. Qxc3 {[%emt 0:00:13] White is better.} h6 {[%emt 0:00:03]} 9. Bh4 {[%emt 0:00:22]} (9. Bxf6 $1 $14 Qxf6 10. Ne2) 9... g5 $1 $11 {[%emt 0:00:03][%cal Of6e4] [#] Strongly threatening ...Ne4!} 10. Bg3 $1 {[%emt 0:00:02]} Ne4 {[%emt 0:00:01]} 11. Qc1 {[%emt 0:00:06]} (11. Qb3 $11) 11... Nxg3 {[%emt 0:00:06]} (11... Qe7 $15) 12. hxg3 {[%emt 0:00:02]} Bf5 {[%emt 0:00:13]} 13. Bb5 {[%emt 0:00:05]} Qd6 {[%emt 0:00:05] [#] ...Qb4+ is the strong threat.} 14. Bxc6+ {[%emt 0:00:35]} bxc6 {[%emt 0:00:02]} 15. Qc3 {[%emt 0:00:02]} Be4 {[%emt 0:00:25]} 16. f3 {[%emt 0:00:44]} Bf5 {[%emt 0:00:15]} 17. Ne2 {[%emt 0:00:06]} Kf8 {[%emt 0:00:08]} 18. Rc1 {[%emt 0:00:02]} Bd7 {[%emt 0:00:04]} 19. Kf2 {[%emt 0:00:03]} (19. g4 $142) 19... Kg7 {[%emt 0:00:02]} ({Black should try} 19... h5) 20. g4 $16 {[%emt 0:00:07]} f6 {[%emt 0:00:13]} (20... a5 $16 21. Ng3 Rhb8) 21. Ng3 $18 {[%emt 0:00:01]} Rae8 {[%emt 0:00:10]} 22. Nf5+ {[%emt 0:00:03]} Bxf5 {[%emt 0:00:02]} 23. gxf5 {[%emt 0:00:01]} Rb8 {[%emt 0:00:04]} 24. b3 {[%emt 0:00:02]} ({Much worse is} 24. Qxc6 $6 Rxb2+ 25. Kf1 Qxc6 (25... Rxa2 $2 {too greedy.} 26. Qb7 $18) 26. Rxc6 Rb1+ (26... Rxa2 27. Rxc7+ Kg8 28. Kg1 $16) 27. Kf2 Rxh1 $11) 24... Rb6 {[%emt 0:00:01]} 25. Qa5 {[%emt 0:00:10][%cal Oh1h5]} a6 {[%emt 0:00:05]} ({Better is} 25... h5) 26. g4 {[%emt 0:00:03] White is more active.} Re8 {[%emt 0:00:04]} (26... h5 $142) 27. Qc5 {[%emt 0:00:03]} Qe7 $2 {[%emt 0:00:16] A mistake that costs the game.} (27... Ra8 $16 28. b4 Rc8) 28. Qxe7+ {[%emt 0:00:02]} Rxe7 {[%emt 0:00:01][%cal Be8e7,Be7d7,Bd7d6][%mdl 4128] Endgame. KRR-KRR} 29. Rc5 {[%emt 0:00:01]} Rd7 {[%emt 0:00:02]} 30. Rhc1 {[%emt 0:00:02]} Rd6 {[%emt 0:00:02]} 31. Ke2 {[%emt 0:00:01]} h5 {[%emt 0:00:04]} (31... Kg8 $142 32. R1c2 Kf7) 32. gxh5 {[%emt 0:00:02]} Kh6 {[%emt 0:00:01]} 33. Kd3 {[%emt 0:00:02]} Kg7 {[%emt 0:00:06]} 34. e4 {[%emt 0:00:07] White is clearly winning.} dxe4+ {[%emt 0:00:03]} 35. fxe4 {[%emt 0:00:02]} Kh6 {[%emt 0:00:05]} 36. Ke3 Kxh5 {[%emt 0:00:02] Weighted Error Value: White=0.17 (very precise) /Black=0.39.  Loses game:     	---       	Black=1      Mistake:       	White=3     	Black=7      Inaccurate:     	White=4     	Black=5      OK:         	White=12    	Black=6      Best:        	White=2     	Black=2      Strong:       	White=1     	Black=1} (36... Rb4 $18 37. R1c4 (37. Rxc6 Rbxd4 38. Rxd6 Rxd6 $18) 37... a5) 1-0

[Event "European Women Blitz-ch 2024"]
[Site "Monaco"]
[Date "2025.01.10"]
[Round "3.5"]
[White "Sliwicka, Alicja"]
[Black "Paehtz, Elisabeth"]
[Result "0-1"]
[Annotator "TA"]
[ECO "B33"]
[WhiteElo "2344"]
[BlackElo "2428"]
[PlyCount "106"]
[EventDate "2025.01.06"]
[EventType "swiss"]
[EventCountry "MNC"]
[SourceTitle "playchess.com"]
[Source "ChessBase"]
[SourceQuality "1"]
[TimeControl "180+2"]

{[%evp 20,106,37,32,54,56,59,46,70,42,130,33,33,5,25,26,27,34,47,25,51,16,25,21,300,0,0,0,-3,-37,-37,-47,0,0,0,0,0,0,25,-35,-40,-70,-73,-71,35,-79,0,-101,0,8,72,61,81,14,20,0,90,84,83,82,42,0,0,-72,-56,-115,0,-220,-203,-241,-225,-471,-452,-29990,-29991,-29991,-29990,-29990,-29991,-29991,0,-29984,-29985,-29993,-29994,-29996,-29997,-29997,-29998]} 1. e4 {[%emt 0:00:01]} c5 {[%emt 0:00:00]} 2. Nf3 {[%emt 0:00:02]} Nc6 {[%emt 0:00:01]} 3. d4 {[%emt 0:00:01]} cxd4 {[%emt 0:00:01]} 4. Nxd4 {[%emt 0:00:02]} Qb6 {[%emt 0:00:01]} 5. Nb3 {[%emt 0:00:02]} Nf6 {[%emt 0:00:02]} 6. Nc3 {[%emt 0:00:02]} e6 {[%emt 0:00:01]} 7. Bd3 {[%emt 0:00:03]} d6 {[%emt 0:00:05]} 8. O-O {[%emt 0:00:04]} a6 {[%emt 0:00:01]} 9. Be3 {[%emt 0:00:09]} Qc7 {[%emt 0:00:01]} 10. f4 {[%emt 0:00:02]} Be7 {[%emt 0:00:03]} 11. Qf3 {[%emt 0:00:02]} Bd7 {[%emt 0:00:13]} 12. Rae1 {[%emt 0:00:04]} Nb4 {[%emt 0:00:03]} 13. Kh1 {[%emt 0:00:11]} Bc6 {[%emt 0:00:03]} 14. Nd4 {[%emt 0:00:08]} Nd7 {[%emt 0:00:14]} (14... O-O $14) 15. Nxc6 {[%emt 0:00:09]} (15. Be2 $16 {a3 is the strong threat.} d5 16. a3 dxe4 17. Qg3 (17. Nxe4 Nd5 $16)) 15... bxc6 $14 {[%emt 0:00:02]} 16. Bd4 {[%emt 0:00:08]} Nxd3 {[%emt 0:00:05]} 17. cxd3 {[%emt 0:00:03]} O-O {[%emt 0:00:22]} 18. Qg3 {[%emt 0:00:02][%csl Gd4][%cal Rg3g7]} e5 {[%emt 0:00:09]} 19. Be3 {[%emt 0:00:10]} Rab8 {[%emt 0:00:12]} 20. Rf2 {[%emt 0:00:12]} Qa5 {[%emt 0:00:10]} 21. d4 {[%emt 0:00:09]} Rb4 $2 {[%emt 0:00:29][%mdl 8192]} (21... Nf6 $11 {and Black stays safe.} 22. Qf3 (22. dxe5 $2 Nxe4 23. Qf3 Nxf2+ 24. Qxf2 Rb4 $19) 22... d5) 22. d5 $2 {[%emt 0:00:31]} (22. fxe5 $18 Qd8 (22... dxe5 $2 23. Bh6 $18) 23. Bh6 (23. exd6 Bh4 $16)) 22... c5 $11 {[%emt 0:00:06][%cal Ob4e4]} 23. Ref1 {[%emt 0:00:06]} Bf6 {[%emt 0:00:11]} 24. f5 {[%emt 0:00:05]} Rfb8 {[%emt 0:00:05]} 25. Bc1 {[%emt 0:00:06]} Rd4 {[%emt 0:00:06]} (25... c4 $15 {feels stronger.}) 26. Qf3 {[%emt 0:00:09]} Qd8 {[%emt 0:00:10]} 27. Ne2 {[%emt 0:00:08]} Rdb4 {[%emt 0:00:01]} 28. Qg4 {[%emt 0:00:18]} Nb6 {[%emt 0:00:10]} 29. Ng3 {[%emt 0:00:06]} (29. b3 $11) 29... Nxd5 $15 {[%emt 0:00:07][%cal Od5f4]} 30. a3 {[%emt 0:00:05]} Rd4 {[%emt 0:00:03]} 31. Nh5 {[%emt 0:00:06] Prevents Nf4} Rb3 {[%emt 0:00:12]} (31... Nf4 $17 {and ...Nxh5 should not be overlooked} 32. Bxf4 exf4 33. Rxf4 Rxb2 34. Nxg7 Kh8 (34... Bxg7 $2 35. f6 $18)) 32. Qe2 {[%emt 0:00:03]} (32. Nxg7 $14 {keeps the upper hand.} Kh8 (32... Bxg7 33. Bh6 $17) 33. Nh5) 32... Nc7 {[%emt 0:00:11] Black is more active.} (32... Nf4 $1 $17 {[%cal Rf4e2]} 33. Bxf4 (33. Nxf6+ Qxf6 34. Bxf4 exf4 $17) 33... exf4 34. Nxf4 Qe8) 33. Rf3 {[%emt 0:00:13]} (33. Nxf6+ $11 Qxf6 34. Qc2) 33... Rxf3 {[%emt 0:00:02]} (33... c4 $1 $17 34. Rxb3 cxb3) 34. gxf3 $11 {[%emt 0:00:06]} Ne8 {[%emt 0:00:13]} (34... c4 $11) 35. Be3 $1 $16 {[%emt 0:00:02]} Ra4 {[%emt 0:00:05] [#]} 36. Rg1 {[%emt 0:00:03]} (36. Qd1 $1 $16 Ra5 37. Nxf6+ Nxf6 38. a4) 36... Kf8 $11 {[%emt 0:00:02]} 37. Qg2 {[%emt 0:00:05]} Rc4 {[%emt 0:00:03] [#]} (37... Qd7 $11) 38. Nxf6 $1 $16 {[%emt 0:00:08]} gxf6 {[%emt 0:00:02]} (38... Qxf6 $2 39. Bg5 $18) 39. Qe2 {[%emt 0:00:04]} Ra4 {[%emt 0:00:03]} 40. Bh6+ {[%emt 0:00:04][%mdl 1024] White has compensation.} Ke7 {[%emt 0:00:01]} 41. Rg8 {[%emt 0:00:01]} (41. Qc2 $11 {keeps the balance.} Qd7 42. Be3) 41... Qb6 {[%emt 0:00:02]} 42. Qd2 {[%emt 0:00:03]} (42. Be3 $15) 42... Qb3 {[%emt 0:00:02]} ({Better is} 42... Rd4 $17 43. Qc2 Qb5) 43. Kg2 $2 {[%emt 0:00:10]} (43. Be3 $1 $11 {and White stays safe.}) 43... Rd4 $19 {[%emt 0:00:01]} 44. Qa5 {[%emt 0:00:00][%cal Og8e8] Threatening mate with Rxe8+!.} Qxb2+ {[%emt 0:00:05]} 45. Kh3 $2 {[%emt 0:00:00]} (45. Kg3 {was the only defense.} Qb5 46. Rxe8+ Qxe8 47. Qc7+ Qd7 48. Qb8) 45... Qf2 {[%emt 0:00:02]} 46. Qb6 {[%emt 0:00:02]} (46. Rg3 $19 Qf1+ 47. Kh4) 46... Qxf3+ {[%emt 0:00:02]} 47. Rg3 {[%emt 0:00:02]} Qh5+ {[%emt 0:00:02]} 48. Kg2 {[%emt 0:00:01]} Qe2+ {[%emt 0:00:02]} 49. Kh3 {[%emt 0:00:01]} Qh5+ {[%emt 0:00:05]} 50. Kg2 {[%emt 0:00:01]} Qxh6 {[%emt 0:00:01]} 51. Qa7+ {[%emt 0:00:05]} Kf8 {[%emt 0:00:01]} 52. Qa8 {[%emt 0:00:02]} Rd2+ {[%emt 0:00:02]} 53. Kf1 {[%emt 0:00:01]} Qf4+ {[%emt 0:00:01]} 0-1

[Event "European Women Blitz-ch 2024"]
[Site "Monaco"]
[Date "2025.01.10"]
[Round "3.6"]
[White "Ushenina, Anna"]
[Black "Garcia Martin, Marta"]
[Result "1-0"]
[Annotator "TA"]
[ECO "A50"]
[WhiteElo "2418"]
[BlackElo "2323"]
[PlyCount "86"]
[EventDate "2025.01.06"]
[EventType "swiss"]
[EventCountry "MNC"]
[SourceTitle "playchess.com"]
[Source "ChessBase"]
[SourceQuality "1"]
[TimeControl "180+2"]

{[%evp 15,86,32,43,46,46,27,28,15,25,26,33,34,36,28,83,46,57,33,61,54,59,57,47,49,57,59,55,50,110,44,109,76,70,16,16,0,7,0,0,0,0,0,24,27,44,0,0,-30,-31,-31,0,-9,0,-36,-10,-41,0,0,372,372,365,365,358,314,314,314,314,314,314,314,306,260,252]} 1. Nf3 {[%emt 0:00:03]} Nf6 {[%emt 0:00:02]} 2. c4 {[%emt 0:00:01]} b6 {[%emt 0:00:03]} 3. g3 {[%emt 0:00:03]} Bb7 {[%emt 0:00:01]} 4. Bg2 {[%emt 0:00:01]} g6 {[%emt 0:00:01]} 5. d4 {[%emt 0:00:04]} Bg7 {[%emt 0:00:01]} 6. O-O {[%emt 0:00:03]} O-O {[%emt 0:00:02]} 7. Qc2 {[%emt 0:00:02]} Be4 {[%emt 0:00:35]} 8. Qb3 {[%emt 0:00:01]} e6 {[%emt 0:00:34]} 9. Nc3 {[%emt 0:00:06]} Bb7 {[%emt 0:00:01]} 10. Qc2 {[%emt 0:00:02]} d5 {[%emt 0:00:11]} 11. cxd5 {[%emt 0:00:17]} Nxd5 {[%emt 0:00:02]} 12. Rd1 {[%emt 0:00:01]} Nd7 {[%emt 0:00:08]} 13. e4 {[%emt 0:00:09]} Nxc3 {[%emt 0:00:02]} 14. bxc3 {[%emt 0:00:04]} Qe7 {[%emt 0:00:17]} (14... Re8 $11) 15. Bg5 {[%emt 0:00:22]} Bf6 {[%emt 0:00:10]} 16. Bh6 {[%emt 0:00:15]} Rfd8 {[%emt 0:00:15]} 17. a4 {[%emt 0:00:07]} Bg7 {[%emt 0:00:06]} 18. Bxg7 {[%emt 0:00:18]} Kxg7 {[%emt 0:00:02]} 19. a5 {[%emt 0:00:13]} Rab8 {[%emt 0:00:35]} 20. axb6 {[%emt 0:00:29]} axb6 {[%emt 0:00:01]} 21. Ra7 {[%emt 0:00:03]} Qd6 {[%emt 0:00:12] [#]} (21... c5 $14) 22. h4 {[%emt 0:00:16]} (22. e5 $1 $16 {[%cal Re5d6]} Qe7 23. c4) 22... Qe7 {[%emt 0:00:18]} (22... b5 $14) 23. c4 {[%emt 0:00:32]} e5 {[%emt 0:00:04]} 24. d5 {[%emt 0:00:05] White is more active.} (24. c5 $14 bxc5 25. dxe5) 24... Nc5 $11 {[%emt 0:00:02]} 25. Ne1 {[%emt 0:00:01]} Ra8 {[%emt 0:00:02]} 26. Rda1 {[%emt 0:00:05]} Rxa7 {[%emt 0:00:01]} 27. Rxa7 {[%emt 0:00:00]} Ra8 {[%emt 0:00:00]} 28. Qa2 {[%emt 0:00:07]} Qd8 {[%emt 0:00:03]} 29. Rxa8 {[%emt 0:00:06]} Qxa8 {[%emt 0:00:01]} 30. Qb2 {[%emt 0:00:01]} f6 {[%emt 0:00:02]} 31. Nc2 {[%emt 0:00:04]} Qa5 {[%emt 0:00:02]} 32. Ne3 {[%emt 0:00:01]} Ba6 {[%emt 0:00:01]} 33. Qc2 {[%emt 0:00:02]} Qe1+ {[%emt 0:00:03]} 34. Bf1 {[%emt 0:00:02]} Qb4 {[%emt 0:00:02]} 35. Be2 {[%emt 0:00:01]} Nb3 {[%emt 0:00:03]} 36. Qb2 {[%emt 0:00:01]} Qa4 $2 {[%emt 0:00:05][%mdl 8192]} (36... Qe1+ $11 37. Bf1 Nc5) 37. Bd1 $18 {[%emt 0:00:02]} Bxc4 {[%emt 0:00:03]} 38. Nxc4 {[%emt 0:00:01]} Qxc4 {[%emt 0:00:01]} 39. Qxb3 {[%emt 0:00:01]} Qxe4 {[%emt 0:00:02]} 40. Qc3 {[%emt 0:00:01]} Qxd5 {[%emt 0:00:03]} 41. Qxc7+ {[%emt 0:00:00]} Kh6 {[%emt 0:00:01]} 42. Be2 {[%emt 0:00:02][%cal Oc7e7] Intending Qe7! and mate.} Qd2 {[%emt 0:00:02]} 43. Qc4 {[%emt 0:00:02]} f5 {[%emt 0:00:06]} 1-0

[Event "European Women Blitz-ch 2024"]
[Site "Monaco"]
[Date "2025.01.10"]
[Round "3.7"]
[White "Maltsevskaya, Aleksandra"]
[Black "Rakhmangulova, Anastasiya"]
[Result "1-0"]
[Annotator "TA"]
[ECO "C41"]
[WhiteElo "2368"]
[BlackElo "2323"]
[PlyCount "87"]
[EventDate "2025.01.06"]
[EventType "swiss"]
[EventCountry "MNC"]
[SourceTitle "playchess.com"]
[Source "ChessBase"]
[SourceQuality "1"]
[TimeControl "180+2"]

{[%evp 16,87,35,25,49,27,22,-14,8,-7,0,0,5,0,7,8,38,0,35,39,44,43,82,49,159,155,225,224,225,225,292,270,479,501,494,489,550,455,838,861,1024,519,764,570,877,867,885,896,2602,1625,29990,29991,29988,1803,2403,2442,2607,1374,1931,1860,2502,1707,1252,1039,1858,2700,29987,29988,29992,29992,29994,29995,29995,29985]} 1. e4 {[%emt 0:00:02]} d6 {[%emt 0:00:00]} 2. d4 {[%emt 0:00:01]} Nf6 {[%emt 0:00:01]} 3. Nc3 {[%emt 0:00:02]} e5 {[%emt 0:00:01]} 4. Nf3 {[%emt 0:00:03]} Nbd7 {[%emt 0:00:01]} 5. Bc4 {[%emt 0:00:02]} Be7 {[%emt 0:00:01]} 6. O-O {[%emt 0:00:03]} O-O {[%emt 0:00:01]} 7. Re1 {[%emt 0:00:05]} c6 {[%emt 0:00:02]} 8. a4 {[%emt 0:00:02]} a5 {[%emt 0:00:01]} 9. b3 {[%emt 0:00:02]} h6 {[%emt 0:00:12]} 10. Bb2 {[%emt 0:00:01]} Re8 {[%emt 0:00:04]} 11. dxe5 {[%emt 0:00:27]} Nxe5 {[%emt 0:00:20]} (11... dxe5 12. Nh4 Bb4 13. Qf3 Nb6) 12. Be2 {[%emt 0:00:28]} Ng6 {[%emt 0:00:02]} (12... Qb6 {feels hotter.} 13. Qd2 Bg4 14. Nd4 d5) 13. Qd2 {[%emt 0:00:07]} Qc7 {[%emt 0:00:02]} 14. Rad1 {[%emt 0:00:06]} Bg4 {[%emt 0:00:32]} 15. Nd4 {[%emt 0:00:17]} Bxe2 {[%emt 0:00:06]} 16. Qxe2 {[%emt 0:00:02]} Rad8 {[%emt 0:00:02]} (16... d5 $5) 17. Nf5 {[%emt 0:00:30]} Bf8 {[%emt 0:00:02]} 18. Qf3 {[%emt 0:00:01][%cal Of5h6]} Nd7 {[%emt 0:00:18]} 19. Qg3 {[%emt 0:00:25][%cal Rf5d6] White is much more active.} Nc5 {[%emt 0:00:04] [#]} (19... Nf6 $14) 20. h4 $1 $16 {[%emt 0:00:05]} Kh7 {[%emt 0:00:20]} (20... h5 $16) 21. h5 $18 {[%emt 0:00:04]} Ne5 {[%emt 0:00:17]} 22. f4 {[%emt 0:00:24]} Ned7 {[%emt 0:00:00]} 23. Nxg7 {[%emt 0:00:01]} Qb6 $2 {[%emt 0:00:37]} (23... Bxg7 24. Nb5 Rg8 25. Nxc7 Bd4+ 26. Bxd4 (26. Rxd4 Rxg3 27. e5 d5 $18) 26... Rxg3) 24. Nxe8 {[%emt 0:00:12]} Rxe8 {[%emt 0:00:04]} 25. Kh2 {[%emt 0:00:03]} Ne6 {[%emt 0:00:10]} 26. Ne2 {[%emt 0:00:06][%cal Bc3e2,Be2d4,Bd4f5][%mdl 32]} Be7 {[%emt 0:00:09]} (26... Qc5 $142 27. Qf3 Qxc2) 27. Nd4 {[%emt 0:00:06]} Rg8 {[%emt 0:00:04]} 28. Qf3 {[%emt 0:00:02]} Ndc5 {[%emt 0:00:13]} 29. Nf5 {[%emt 0:00:02]} Bf8 {[%emt 0:00:03]} 30. Nxd6 {[%emt 0:00:04]} Qc7 {[%emt 0:00:01]} 31. e5 {[%emt 0:00:01]} Nd7 {[%emt 0:00:08]} 32. Qh3 {[%emt 0:00:03]} Nxf4 {[%emt 0:00:04]} 33. Qf5+ {[%emt 0:00:01]} Ng6 {[%emt 0:00:01]} 34. hxg6+ {[%emt 0:00:01]} (34. Qxf7+ $142 Rg7 35. hxg6+ Kh8 36. e6 Bxd6+ 37. Rxd6 Qxd6+ 38. Kh3 Qf8 39. exd7 (39. Qxd7 Qf5+ 40. Kh2 Qh5+ 41. Kg1 Qxg6 42. Bxg7+ Qxg7 43. e7 Kh7 44. Qd3+ Qg6 45. e8=Q Qe4 46. Qdxe4+ Kg7 47. Q4g6#) 39... Qxf7 40. Re8+ (40. gxf7 Kh7 41. f8=Q Rg3+ 42. Kxg3 Kg6 43. Re6+ Kh7 44. Rxh6#) 40... Qg8 41. Rxg8+ Kxg8 42. d8=Q#) 34... fxg6 {[%emt 0:00:01]} 35. Qf3 {[%emt 0:00:05] Ne8 would kill now.} Nc5 {[%emt 0:00:03][%cal Bd7c5,Bc5e6,Be6g5,Bg5e4][%mdl 32]} 36. Qg3 {[%emt 0:00:02]} Ne6 {[%emt 0:00:02]} 37. Rf1 {[%emt 0:00:02]} Ng5 {[%emt 0:00:03]} 38. Kh1 {[%emt 0:00:03]} Bg7 {[%emt 0:00:01]} 39. Ba1 {[%emt 0:00:03]} Qb6 {[%emt 0:00:02] [#]} 40. e6 $1 {[%emt 0:00:01] And now Bxg7 would win.} Qb4 {[%emt 0:00:02]} (40... Qc5 41. e7) 41. Bxg7 {[%emt 0:00:02]} Kxg7 {[%emt 0:00:02]} 42. Nf7 {[%emt 0:00:03]} Ne4 {[%emt 0:00:01]} 43. Qe5+ {[%emt 0:00:02]} Kh7 {[%emt 0:00:01]} 44. Rd4 {[%emt 0:00:02]} 1-0